bitfinex/quotes_SOLUSD_20250307
["timestamp","ask_amount","ask_price","bid_price","bid_amount"]
[1741306270706,6.38216157,144.28,144.22,0.14216157]
[1741306270904,6.24,144.28,144.22,329.38815478]
[1741306272024,88.24,144.29,144.22,329.38815478]
[1741306272424,0.14216157,144.28,144.22,312.14216157]
[1741306272735,0.14216157,144.28,144.22,312.0]
[1741306275523,88.24,144.29,144.23,27.63874123]
[1741306275831,7.8404,144.3,144.25,27.63874123]
[1741306276013,6.24,144.3,144.26,27.49657966]
[1741306276426,0.033,144.32,144.26,27.49657966]
[1741306276729,6.273,144.32,144.26,27.49657966]
[1741306276919,6.273,144.32,144.26,0.14216157]
[1741306278524,6.273,144.32,144.26,339.63874123]
[1741306278728,0.033,144.32,144.28,27.49657966]
[1741306278914,0.033,144.32,144.29,27.49657966]
[1741306280122,0.033,144.32,144.3,27.49657966]
[1741306280432,0.033,144.32,144.31,27.63874123]
[1741306281928,0.033,144.32,144.31,109.70574123]
[1741306282128,0.033,144.32,144.31,421.70574123]
[1741306284130,0.033,144.32,144.31,312.0]
[1741306284336,0.033,144.32,144.29,27.49657966]
[1741306285039,0.033,144.32,144.3,0.14216157]
[1741306285219,0.033,144.32,144.3,27.49657966]
[1741306286141,0.033,144.32,144.29,27.63874123]
[1741306287335,0.033,144.32,144.29,339.63874123]
[1741306287933,0.033,144.32,144.3,27.49657966]
[1741306288519,0.033,144.32,144.29,339.63874123]
[1741306289144,0.033,144.32,144.29,312.14216157]
[1741306289310,0.033,144.32,144.29,339.63874123]
[1741306289517,0.033,144.32,144.3,27.49657966]
[1741306290116,0.033,144.32,144.29,339.63874123]
[1741306290317,0.033,144.32,144.29,312.14216157]
[1741306290730,0.033,144.32,144.29,339.63874123]
[1741306291831,0.033,144.32,144.31,0.14216157]
[1741306294060,0.033,144.32,144.29,17.30373774]
[1741306294542,0.033,144.32,144.29,99.37073774]
[1741306294938,0.033,144.32,144.31,312.14216157]
[1741306295848,0.033,144.32,144.31,17.30373774]
[1741306296551,0.033,144.32,144.31,100.92453774]
[1741306298528,0.033,144.32,144.31,99.22857617]
[1741306298728,0.033,144.32,144.31,99.37073774]
[1741306298947,0.033,144.32,144.31,411.37073774]
[1741306299142,0.033,144.32,144.31,312.14216157]
[1741306300359,0.033,144.32,144.31,312.0]
[1741306300580,0.033,144.32,144.28,17.16157617]
[1741306300880,0.033,144.32,144.29,0.14216157]
[1741306301677,0.033,144.32,144.26,99.22857617]
[1741306301851,0.033,144.32,144.27,17.16157617]
[1741306302044,0.033,144.32,144.28,0.14216157]
[1741306302245,0.033,144.32,144.27,17.16157617]
[1741306302462,0.033,144.32,144.28,17.16157617]
[1741306302673,0.033,144.35,144.32,0.14216157]
[1741306302880,35.12971399,144.4,144.38,21.5292]
[1741306303189,0.12971399,144.4,144.39,63.08531391]
[1741306303358,43.43479379,144.46,144.42,0.14216157]
[1741306303541,43.43479379,144.46,144.43,329.16157617]
[1741306303744,43.43479379,144.46,144.43,336.22743774]
[1741306303953,43.43479379,144.46,144.43,577.54753584]
[1741306304297,43.43479379,144.46,144.43,575.40537427]
[1741306304442,43.43479379,144.46,144.43,556.23659931]
[1741306304644,43.43479379,144.46,144.45,26.64692314]
[1741306304849,43.43479379,144.46,144.45,50.32037194]
[1741306305083,43.43479379,144.46,144.45,60.58617695]
[1741306305384,43.43479379,144.46,144.45,60.72833852]
[1741306305749,43.43479379,144.46,144.45,67.65113852]
[1741306305968,43.43479379,144.46,144.45,95.0325539]
[1741306306162,43.43479379,144.46,144.45,289.51813852]
[1741306306674,0.033,144.47,144.46,0.28432314]
[1741306306973,0.033,144.47,144.46,27.52357695]
[1741306307970,0.033,144.47,144.46,347.89879731]
[1741306308168,0.033,144.47,144.46,566.45503852]
[1741306308372,0.033,144.47,144.46,593.8364539]
[1741306308555,0.033,144.47,144.46,595.8364539]
[1741306309188,0.033,144.47,144.46,593.8364539]
[1741306309470,82.0,144.65,144.58,20.0]
[1741306309680,6.4752,144.71,144.62,20.0]
[1741306309849,1.5031,144.72,144.66,27.38141538]
[1741306309850,100.65877959,144.7,144.66,27.38141538]
[1741306310049,18.65877959,144.7,144.66,27.38141538]
[1741306310269,18.65877959,144.7,144.68,27.38141538]
[1741306310484,6.74,144.74,144.68,27.38141538]
[1741306310661,6.74,144.74,144.66,27.38141538]
[1741306310856,20.5937698,144.73,144.65,0.14216157]
[1741306311071,20.5937698,144.73,144.68,27.38141538]
[1741306311354,1.6612,144.77,144.7,27.38141538]
[1741306311663,1.6612,144.77,144.71,27.38141538]
[1741306312048,18.65584601,144.77,144.73,27.38141538]
[1741306312252,1.6612,144.82,144.73,27.38141538]
[1741306312464,1.6612,144.82,144.69,171.56]
[1741306312766,0.14216157,144.81,144.69,504.20141538]
[1741306313077,0.14216157,144.81,144.7,27.38141538]
[1741306313255,2.14216157,144.81,144.69,476.82]
[1741306313452,2.14216157,144.81,144.7,27.38141538]
[1741306313760,2.14216157,144.81,144.69,504.20141538]
[1741306314484,0.14216157,144.77,144.69,164.82]
[1741306314660,0.14216157,144.73,144.62,27.52357695]
[1741306314855,82.0,144.72,144.64,0.14216157]
[1741306315055,0.14216157,144.7,144.64,27.38141538]
[1741306315559,6.74,144.71,144.64,27.38141538]
[1741306315759,0.14216157,144.7,144.62,0.14216157]
[1741306315959,6.74,144.71,144.62,0.14216157]
[1741306316175,0.14216157,144.73,144.67,27.38141538]
[1741306316385,0.14216157,144.73,144.67,27.52357695]
[1741306316677,8.2504,144.74,144.62,0.14216157]
[1741306316869,0.14216157,144.73,144.67,27.38141538]
[1741306317067,6.72,144.74,144.7,0.14216157]
[1741306317269,6.72,144.74,144.7,339.52357695]
[1741306317580,6.74,144.77,144.7,339.52357695]
[1741306317774,8.3935,144.79,144.72,27.38141538]
[1741306318177,8.3935,144.79,144.71,0.14216157]
[1741306318375,8.3935,144.79,144.72,0.14216157]
[1741306318575,8.3935,144.79,144.73,27.38141538]
[1741306318885,1.6535,144.79,144.74,0.14216157]
[1741306319055,6.76,144.8,144.74,27.52357695]
[1741306319375,1.875035,144.83,144.76,20.14216157]
[1741306319560,1.875035,144.83,144.79,27.38141538]
[1741306320062,1.875035,144.83,144.8,0.14216157]
[1741306320260,1.875035,144.83,144.78,27.38141538]
[1741306320472,1.875035,144.83,144.77,0.14216157]
[1741306320769,1.875035,144.83,144.77,312.14216157]
[1741306321364,1.875035,144.83,144.77,312.0]
[1741306321677,1.875035,144.83,144.76,0.14216157]
[1741306322260,1.875035,144.83,144.79,0.14216157]
[1741306322658,1.875035,144.83,144.74,0.14216157]
[1741306322874,1.875035,144.83,144.77,0.14216157]
[1741306323067,1.875035,144.83,144.77,41.07042616]
[1741306323784,1.875035,144.83,144.81,40.92826459]
[1741306324081,1.875035,144.83,144.77,6.98216157]
[1741306324082,1.875035,144.83,144.82,41.07042616]
[1741306324471,1.875035,144.83,144.82,353.07042616]
[1741306325285,1.875035,144.83,144.82,312.0]
[1741306325585,1.875035,144.83,144.81,41.07042616]
[1741306325781,1.875035,144.83,144.82,41.07042616]
[1741306326381,1.875035,144.83,144.81,0.14216157]
[1741306326571,1.875035,144.83,144.81,41.07042616]
[1741306326973,1.875035,144.83,144.81,0.14216157]
[1741306327178,1.875035,144.83,144.82,41.07042616]
[1741306327376,0.14216157,144.89,144.8,13.2953]
[1741306327563,82.14216157,144.89,144.81,0.14216157]
[1741306328565,82.14216157,144.89,144.8,0.14216157]
[1741306328566,88.9,144.88,144.8,0.14216157]
[1741306328869,33.9328956,144.87,144.78,40.92826459]
[1741306329073,33.9328956,144.87,144.79,0.14216157]
[1741306329319,33.9328956,144.87,144.79,41.07042616]
[1741306329465,6.9,144.88,144.82,0.14216157]
[1741306329665,0.7708662,144.89,144.82,41.07042616]
[1741306329865,0.7708662,144.89,144.83,40.92826459]
[1741306330086,0.7708662,144.89,144.82,0.14216157]
[1741306330266,0.7708662,144.89,144.81,0.14216157]
[1741306330467,0.7708662,144.89,144.84,0.14216157]
[1741306331368,0.7708662,144.89,144.82,41.07042616]
[1741306331568,0.7708662,144.89,144.84,353.07042616]
[1741306331890,0.7708662,144.89,144.88,0.14216157]
[1741306332694,0.7708662,144.89,144.87,40.92826459]
[1741306332873,0.7708662,144.89,144.88,41.07042616]
[1741306333662,0.7708662,144.89,144.88,83.58944041]
[1741306334177,0.033,144.92,144.88,42.51901425]
[1741306334387,0.033,144.92,144.91,0.14216157]
[1741306334699,0.033,144.92,144.91,41.07042616]
[1741306334863,0.033,144.92,144.91,0.14216157]
[1741306335066,0.033,144.92,144.89,40.92826459]
[1741306335282,0.033,144.92,144.89,0.14216157]
[1741306335866,0.033,144.92,144.89,353.07042616]
[1741306336093,0.033,144.92,144.91,41.07042616]
[1741306338174,0.033,144.92,144.91,47.97122616]
[1741306338881,0.033,144.92,144.91,56.36722616]
[1741306339091,0.033,144.92,144.91,47.46642616]
[1741306339291,0.033,144.92,144.91,56.50938773]
[1741306339489,0.033,144.92,144.91,13.43896157]
[1741306339680,0.033,144.92,144.91,47.46642616]
[1741306339891,0.033,144.92,144.91,54.36722616]
[1741306340273,0.033,144.92,144.91,366.50938773]
[1741306340496,0.033,144.98,144.95,0.14216157]
[1741306340668,0.033,144.98,144.97,40.94974702]
[1741306341210,0.033,144.98,144.97,27.33975608]
[1741306344688,0.033,144.98,144.96,0.14216157]
[1741306345282,0.033,144.98,144.95,164.38]
[1741306347086,0.17516157,144.98,144.95,164.38]
[1741306347405,0.033,144.98,144.95,164.38]
[1741306347699,0.17516157,144.98,144.9,312.0]
[1741306347905,0.14216157,144.96,144.88,0.03]
[1741306348086,0.14216157,144.94,144.88,0.03]
[1741306348288,0.14216157,144.92,144.88,0.03]
[1741306348694,1.528,144.93,144.88,0.03]
[1741306348891,0.14216157,144.92,144.88,0.03]
[1741306349097,0.14216157,144.92,144.79,164.32]
[1741306349293,0.14216157,144.9,144.8,27.19759451]
[1741306349504,6.98,144.89,144.8,27.19759451]
[1741306350089,6.98,144.89,144.79,164.32]
[1741306350302,6.98,144.89,144.82,27.19759451]
[1741306350621,6.98,144.89,144.79,164.32]
[1741306350908,33.9328956,144.91,144.82,312.0]
[1741306351205,0.14216157,144.9,144.82,339.19759451]
[1741306351383,1.528,144.93,144.84,27.19759451]
[1741306351581,0.14216157,144.92,144.8,6.906]
[1741306351807,0.14216157,144.92,144.83,27.19759451]
[1741306352003,0.14216157,144.92,144.84,27.19759451]
[1741306352209,0.14216157,144.92,144.82,27.19759451]
[1741306352396,0.14216157,144.92,144.83,27.19759451]
[1741306352797,0.17516157,144.92,144.83,27.19759451]
[1741306353106,0.17516157,144.92,144.83,27.33975608]
[1741306353311,0.033,144.92,144.84,27.19759451]
[1741306353615,0.033,144.92,144.85,27.33975608]
[1741306353790,0.033,144.92,144.86,27.19759451]
[1741306353992,0.033,144.92,144.87,0.14216157]
[1741306354298,0.033,144.92,144.87,27.33975608]
[1741306354496,0.033,144.92,144.89,0.14216157]
[1741306354928,0.033,144.92,144.91,0.14216157]
[1741306355091,0.033,144.92,144.91,35.6888764]
[1741306355805,0.033,144.92,144.91,27.33975608]
[1741306355985,0.033,144.92,144.91,0.14216157]
[1741306356192,0.033,144.92,144.9,164.36]
[1741306357998,0.033,144.92,144.91,347.86858136]
[1741306358302,0.033,144.98,144.93,0.14216157]
[1741306358798,0.033,144.98,144.94,27.19759451]
[1741306358994,0.033,144.98,144.92,6.5304]
[1741306359209,0.033,144.98,144.92,33.72799451]
[1741306359519,0.033,144.98,144.91,34.27759451]
[1741306359718,0.033,144.98,144.92,27.33975608]
[1741306360015,0.033,144.98,144.91,7.08]
[1741306360315,0.033,144.98,144.9,191.55759451]
[1741306360499,0.033,144.98,144.9,164.36]
[1741306360814,0.033,144.98,144.9,191.55759451]
[1741306361014,0.033,144.98,144.91,27.33975608]
[1741306361195,0.033,144.98,144.9,191.55759451]
[1741306361607,0.033,144.98,144.91,312.0]
[1741306361798,1.5643,144.98,144.9,164.36]
[1741306362015,7.14,144.97,144.9,164.36]
[1741306362795,9.14,144.97,144.9,164.36]
[1741306363301,33.9328956,144.96,144.9,164.36]
[1741306363507,2.0,144.94,144.82,164.36]
[1741306363702,35.9328956,144.93,144.82,164.36]
[1741306363899,33.9328956,144.93,144.82,164.36]
[1741306364096,33.9328956,144.92,144.82,164.36]
[1741306364326,1.5431,144.9,144.82,164.36]
[1741306364508,40.3353956,144.89,144.82,164.36]
[1741306364714,40.3353956,144.89,144.83,0.03]
[1741306365123,38.3353956,144.89,144.83,0.03]
[1741306365319,0.14216157,144.88,144.83,0.03]
[1741306365527,2.14216157,144.88,144.8,0.03]
[1741306365904,0.14216157,144.88,144.8,0.03]
[1741306366622,4.4025,145.01,144.88,0.14216157]
[1741306366825,4.4025,145.01,144.91,40.8655166]
[1741306367011,1.5431,145.02,144.93,40.8655166]
[1741306367321,1.5431,145.02,144.94,40.8655166]
[1741306367704,1.5431,145.02,144.92,40.8655166]
[1741306368009,0.033,144.98,144.89,7.04386157]
[1741306368329,0.033,144.98,144.93,40.8655166]
[1741306368838,0.033,144.98,144.91,40.8655166]
[1741306369042,0.033,144.98,144.91,352.8655166]
[1741306369334,0.033,144.98,144.91,312.0]
[1741306369706,0.033,144.98,144.88,40.8655166]
[1741306370132,0.033,144.98,144.89,40.8655166]
[1741306370328,0.033,144.98,144.91,0.14216157]
[1741306370506,0.033,144.98,144.93,40.8655166]
[1741306370833,0.033,144.98,144.9,0.14216157]
[1741306371010,0.033,144.98,144.96,0.14216157]
[1741306371200,0.033,144.98,144.96,41.00767817]
[1741306371398,0.033,144.98,144.96,0.14216157]
[1741306371636,0.033,144.98,144.94,0.14216157]
[1741306371802,0.033,144.98,144.96,40.8655166]
[1741306372127,0.033,144.98,144.97,0.14216157]
[1741306372317,0.033,144.98,144.96,40.8655166]
[1741306372508,0.033,144.98,144.95,0.14216157]
[1741306372509,0.033,144.98,144.97,41.00767817]
[1741306372720,0.033,144.98,144.97,353.00767817]
[1741306372922,0.033,145.07,145.01,0.14216157]
[1741306373224,0.033,145.07,145.06,40.8655166]
[1741306373424,0.033,145.07,145.06,47.90127817]
[1741306373602,0.033,145.07,145.04,7.03676157]
[1741306374337,0.033,145.07,145.05,0.14216157]
[1741306374521,0.033,145.07,145.06,41.00767817]
[1741306374822,0.033,145.07,145.06,49.34831221]
[1741306375215,0.033,145.07,145.06,47.90127817]
[1741306375798,0.033,145.07,145.06,41.00767817]
[1741306376322,0.033,145.07,145.06,353.00767817]
[1741306376515,0.033,145.07,145.06,359.90127817]
[1741306376720,0.033,145.07,145.06,41.00767817]
[1741306376925,0.033,145.07,145.06,0.14216157]
[1741306377114,0.033,145.07,145.06,41.00767817]
[1741306377503,0.033,145.07,145.06,40.8655166]
[1741306377704,0.033,145.07,145.02,1.44715067]
[1741306377931,0.033,145.07,145.05,0.14216157]
[1741306378225,0.033,145.07,145.04,40.8655166]
[1741306378630,0.033,145.07,145.03,0.14216157]
[1741306378814,0.033,145.07,145.05,40.8655166]
[1741306379015,0.033,145.07,145.06,40.8655166]
[1741306379357,0.033,145.07,145.04,40.8655166]
[1741306379533,0.033,145.07,145.03,40.8655166]
[1741306379732,0.033,145.07,145.03,352.8655166]
[1741306379906,0.033,145.07,145.03,312.0]
[1741306380109,0.033,145.07,145.06,40.8655166]
[1741306380327,0.033,145.07,145.06,41.00767817]
[1741306381230,0.033,145.07,145.06,47.90127817]
[1741306381430,1.8322091,145.12,145.1,0.14216157]
[1741306381612,1.8322091,145.12,145.1,7.78216157]
[1741306381813,1.8322091,145.12,145.11,41.00767817]
[1741306382130,1.8322091,145.12,145.11,48.90001084]
[1741306382333,1.8322091,145.12,145.11,89.62336587]
[1741306382509,1.8322091,145.12,145.11,89.76552744]
[1741306382927,1.8322091,145.12,145.11,8.03449424]
[1741306383105,1.8322091,145.12,145.11,96.65682744]
[1741306383313,43.2583956,145.29,145.15,0.14216157]
[1741306383518,33.9328956,145.28,145.19,312.0]
[1741306383719,33.9328956,145.27,145.2,40.8655166]
[1741306383930,33.9328956,145.27,145.23,40.8655166]
[1741306384127,0.4,145.3,145.23,0.14216157]
[1741306384836,0.4,145.3,145.22,7.7]
[1741306385014,33.9328956,145.29,145.18,40.8655166]
[1741306385210,33.9328956,145.29,145.14,7.7]
[1741306385211,33.9328956,145.28,145.17,40.8655166]
[1741306385417,33.9328956,145.27,145.15,6.8893]
[1741306385627,42.0328956,145.3,145.21,40.8655166]
[1741306385822,42.0328956,145.3,145.18,0.14216157]
[1741306386154,2.14216157,145.27,145.16,164.22]
[1741306386352,0.14216157,145.25,145.16,164.22]
[1741306386639,0.14216157,145.23,145.08,164.16]
[1741306386818,0.14216157,145.21,145.08,171.0527]
[1741306387019,33.9328956,145.2,145.11,40.8655166]
[1741306387234,33.9328956,145.2,145.1,40.8655166]
[1741306387425,33.9328956,145.2,145.11,40.8655166]
[1741306387619,33.9328956,145.2,145.12,40.8655166]
[1741306387827,33.9328956,145.2,145.09,0.14216157]
[1741306388018,33.9328956,145.2,145.12,40.8655166]
[1741306388221,33.9328956,145.2,145.11,40.8655166]
[1741306388428,41.6728956,145.19,145.1,0.03]
[1741306388610,0.14216157,145.18,145.1,0.03]
[1741306388814,33.9328956,145.17,145.1,0.03]
[1741306389011,33.9328956,145.16,145.1,0.03]
[1741306389416,33.9328956,145.16,145.11,40.8655166]
[1741306389617,33.9328956,145.16,145.12,40.8655166]
[1741306389920,0.033,145.2,145.13,40.8655166]
[1741306390535,0.033,145.2,145.14,40.8655166]
[1741306390837,0.033,145.2,145.16,40.8655166]
[1741306391019,0.033,145.2,145.18,40.8655166]
[1741306391539,0.033,145.2,145.19,40.8655166]
[1741306391844,4.8685,145.3,145.2,0.14216157]
[1741306391845,0.4,145.3,145.2,0.14216157]
[1741306392138,0.4,145.3,145.26,40.8655166]
[1741306392326,0.4,145.3,145.24,40.8655166]
[1741306392527,0.4,145.3,145.25,40.8655166]
[1741306392720,0.4,145.3,145.27,40.8655166]
[1741306393145,0.4,145.3,145.23,40.8655166]
[1741306393317,0.4,145.3,145.19,164.14]
[1741306393519,0.4,145.3,145.2,42.31132117]
[1741306393737,0.4,145.3,145.27,40.8655166]
[1741306393913,0.4,145.3,145.28,40.8655166]
[1741306394116,0.4,145.3,145.23,21.58719734]
[1741306394335,0.4,145.3,145.29,40.8655166]
[1741306394936,0.4,145.3,145.29,312.0]
[1741306395124,0.4,145.3,145.29,352.8655166]
[1741306395326,0.4,145.3,145.29,47.89037817]
[1741306395528,0.033,145.35,145.32,20.0]
[1741306395725,0.033,145.35,145.34,40.8655166]
[1741306395930,0.033,145.35,145.34,1.58617979]
[1741306396129,0.033,145.35,145.34,42.45169639]
[1741306396331,0.033,145.35,145.34,83.31721299]
[1741306396731,0.0001,145.35,145.34,83.45937456]
[1741306396930,1.8322091,145.4,145.38,0.14216157]
[1741306397133,1.8322091,145.4,145.39,47.88567817]
[1741306397334,1.8322091,145.4,145.39,0.14216157]
[1741306397536,1.8322091,145.4,145.39,50.39135739]
[1741306397738,1.8322091,145.4,145.39,9.38367922]
[1741306397944,1.8322091,145.4,145.39,8.08216157]
[1741306398130,1.8322091,145.4,145.39,48.8055166]
[1741306398323,1.8322091,145.4,145.39,328.4039627]
[1741306398528,1.8322091,145.4,145.39,319.94]
[1741306398744,1.8322091,145.4,145.39,366.97377817]
[1741306399251,1.8322091,145.4,145.39,312.14216157]
[1741306399445,1.8322091,145.4,145.33,164.08]
[1741306399742,1.8322091,145.4,145.39,40.8655166]
[1741306399936,1.8322091,145.4,145.34,1.44373299]
[1741306400128,1.8322091,145.4,145.38,40.8655166]
[1741306400322,1.8322091,145.4,145.39,41.00767817]
[1741306400846,1.8322091,145.4,145.39,1.58579694]
[1741306401043,1.8322091,145.4,145.38,8.4]
[1741306401227,1.8322091,145.4,145.33,172.48]
[1741306401432,1.8322091,145.4,145.35,40.8655166]
[1741306401643,1.8322091,145.4,145.39,40.8655166]
[1741306401868,0.033,145.55,145.39,49.56983974]
[1741306402028,0.033,145.55,145.51,40.8655166]
[1741306402235,0.033,145.55,145.52,40.8655166]
[1741306402429,0.033,145.55,145.53,312.0]
[1741306402731,0.033,145.55,145.47,163.9]
[1741306402732,0.033,145.55,145.5,40.8655166]
[1741306402928,2.0,145.54,145.38,6.3353]
[1741306403129,0.14216157,145.53,145.38,6.3353]
[1741306403333,0.14216157,145.51,145.38,47.2008166]
[1741306403540,2.0,145.47,145.37,163.9]
[1741306403742,0.14216157,145.46,145.37,163.9]
[1741306404140,2.14216157,145.46,145.37,163.9]
[1741306404429,0.14216157,145.46,145.37,163.9]
[1741306404940,2.14216157,145.44,145.37,163.9]
[1741306405134,8.48,145.43,145.37,163.9]
[1741306405334,0.14216157,145.42,145.37,163.9]
[1741306405734,35.9328956,145.41,145.31,312.0]
[1741306405951,36.07505717,145.4,145.29,163.86]
[1741306406144,2.14216157,145.38,145.29,163.86]
[1741306406359,0.14216157,145.36,145.29,163.86]
[1741306406744,0.14216157,145.36,145.21,163.86]
[1741306406960,2.0,145.34,145.21,204.7255166]
[1741306407264,35.5855956,145.35,145.24,40.8655166]
[1741306407465,35.5855956,145.35,145.25,40.8655166]
[1741306407854,35.5855956,145.35,145.21,163.86]
[1741306407855,0.14216157,145.33,145.21,163.86]
[1741306408161,35.5855956,145.35,145.22,1.44534374]
[1741306408360,0.14216157,145.36,145.28,40.8655166]
[1741306408669,8.5,145.37,145.3,40.8655166]
[1741306408958,8.5,145.37,145.3,312.0]
[1741306410050,8.5,145.46,145.36,40.8655166]
[1741306410259,8.5,145.47,145.34,0.14216157]
[1741306410456,8.5,145.47,145.34,8.64216157]
[1741306410754,0.14216157,145.46,145.36,40.8655166]
[1741306410953,6.0926,145.48,145.38,40.8655166]
[1741306411145,6.0926,145.48,145.36,1.44404868]
[1741306411146,0.033,145.4,145.34,8.5]
[1741306411451,0.033,145.4,145.36,40.8655166]
[1741306411954,0.033,145.4,145.34,8.5]
[1741306412370,0.033,145.4,145.35,40.8655166]
[1741306412537,0.033,145.4,145.36,41.00767817]
[1741306412742,0.033,145.4,145.39,0.14216157]
[1741306412940,0.033,145.4,145.39,353.00767817]
[1741306413336,0.033,145.4,145.39,312.0]
[1741306414270,0.033,145.4,145.39,353.00767817]
[1741306416465,0.033,145.4,145.39,359.88567817]
[1741306416635,0.033,145.4,145.39,360.02783974]
[1741306416836,1.5479,145.54,145.4,0.14216157]
[1741306417052,1.5479,145.54,145.45,40.8655166]
[1741306417464,1.5479,145.54,145.46,0.14216157]
[1741306417670,1.5479,145.54,145.46,41.00767817]
[1741306418161,0.033,145.55,145.46,41.00767817]
[1741306418552,0.033,145.55,145.47,1.44286107]
[1741306418751,0.033,145.55,145.49,0.14216157]
[1741306419065,0.033,145.55,145.47,40.8655166]
[1741306419380,0.033,145.55,145.48,0.14216157]
[1741306419860,0.033,145.55,145.5,41.00767817]
[1741306420061,0.033,145.55,145.53,312.0]
[1741306421043,0.033,145.55,145.52,0.14216157]
[1741306421472,0.033,145.55,145.53,40.8655166]
[1741306421655,0.033,145.55,145.54,0.14216157]
[1741306422141,0.033,145.55,145.52,40.8655166]
[1741306422341,0.033,145.55,145.54,41.00767817]
[1741306422564,7.44051958,145.69,145.59,40.8655166]
[1741306422778,1.8322091,145.69,145.59,0.14216157]
[1741306422980,1.8322091,145.69,145.59,1.58368667]
[1741306423149,1.8322091,145.69,145.62,0.14216157]
[1741306423547,1.8322091,145.69,145.61,40.8655166]
[1741306423770,1.8322091,145.69,145.59,8.44]
[1741306424148,2.0,145.67,145.57,163.78]
[1741306424363,0.14216157,145.67,145.57,163.78]
[1741306424746,0.14216157,145.64,145.57,163.78]
[1741306424946,0.14216157,145.67,145.57,163.78]
[1741306425284,8.48,145.68,145.57,204.6455166]
[1741306425487,8.64216157,145.68,145.57,163.78]
[1741306425787,8.64216157,145.68,145.59,40.8655166]
[1741306425788,8.5,145.68,145.59,40.8655166]
[1741306425952,1.8322091,145.69,145.61,40.8655166]
[1741306426351,1.8322091,145.69,145.63,47.2784166]
[1741306426551,50.0,145.87,145.63,47.2784166]
[1741306426552,2.0,145.88,145.72,0.14216157]
[1741306426861,3.52165529,145.89,145.72,0.14216157]
[1741306426862,2.0,145.87,145.74,40.8655166]
[1741306427054,5.51476967,145.91,145.77,0.14216157]
[1741306427248,5.51476967,145.91,145.85,312.0]
[1741306427467,0.14216157,145.89,145.85,312.0]
[1741306427680,2.0,145.91,145.85,312.0]
[1741306427876,2.0,145.89,145.85,312.0]
[1741306428060,2.0,145.85,145.73,163.68]
[1741306428379,8.56,145.88,145.74,0.14216157]
[1741306428584,0.6277155,145.85,145.76,40.8655166]
[1741306429080,0.6277155,145.85,145.79,312.0]
[1741306429251,2.6277155,145.85,145.79,312.0]
[1741306429455,2.6277155,145.85,145.73,163.68]
[1741306429456,2.14216157,145.84,145.73,163.68]
[1741306429785,0.6277155,145.85,145.76,0.14216157]
[1741306429956,0.6277155,145.85,145.77,0.14216157]
[1741306430156,0.6277155,145.85,145.76,40.8655166]
[1741306430357,0.6277155,145.85,145.79,0.28432314]
[1741306430590,0.6277155,145.85,145.84,41.00767817]
[1741306430785,0.6277155,145.85,145.84,204.60767817]
[1741306430964,0.6277155,145.85,145.84,163.74216157]
[1741306431302,0.6277155,145.85,145.84,245.61535634]
[1741306431674,0.6277155,145.85,145.84,245.47319477]
[1741306431899,0.6277155,145.85,145.84,163.74216157]
[1741306432188,0.6277155,145.85,145.84,163.6]
[1741306432592,0.6277155,145.85,145.84,516.60767817]
[1741306433085,0.6277155,145.85,145.84,475.6]
[1741306433276,0.6277155,145.85,145.84,475.74216157]
[1741306433664,0.6277155,145.85,145.84,475.6]
[1741306433985,0.6277155,145.85,145.78,6.2021]
[1741306434188,0.6277155,145.85,145.74,163.48]
[1741306434404,0.14216157,145.82,145.74,163.48]
[1741306434685,0.14216157,145.8,145.66,163.48]
[1741306434891,2.14216157,145.8,145.66,163.48]
[1741306435181,0.14216157,145.84,145.68,40.8655166]
[1741306435481,2.14216157,145.81,145.66,163.48]
[1741306435695,2.14216157,145.78,145.66,163.48]
[1741306435891,0.14216157,145.76,145.66,163.48]
[1741306436283,2.14216157,145.76,145.66,163.48]
[1741306436478,0.14216157,145.72,145.59,8.88]
[1741306436693,0.14216157,145.7,145.58,163.46]